bitfinex-derivatives/quotes_ETHF0:USTF0_20251216
["timestamp","ask_amount","ask_price","bid_price","bid_amount"]
[1765910280125,40.8,2943.1,2942.5,1.0705]
[1765910280320,40.8,2943.1,2943.0,2.898]
[1765910280519,40.8,2943.1,2943.0,4.7343]
[1765910280716,40.8,2943.1,2943.0,1.0705]
[1765910280918,3.2078,2943.2,2942.6,3.2078]
[1765910280919,1.7533,2942.7,2942.6,3.2078]
[1765910281120,3.5237,2942.4,2942.0,1.07914802]
[1765910281326,0.16994,2942.8,2942.0,4.74294802]
[1765910281327,1.7533,2942.1,2942.0,4.74294802]
[1765910282526,1.7533,2942.1,2942.0,2.90664802]
[1765910282726,3.5237,2942.1,2942.0,0.00864802]
[1765910283022,3.5237,2942.1,2942.0,1.83614802]
[1765910283223,1.7533,2942.1,2942.0,4.74294802]
[1765910283427,3.37776,2942.5,2942.0,4.74294802]
[1765910283927,3.2078,2942.5,2942.4,3.5238]
[1765910284128,44.0078,2942.8,2942.5,0.9809]
[1765910284528,44.0078,2942.8,2942.7,3.4097]
[1765910284728,7.3488,2943.4,2943.0,2.6943]
[1765910284924,3.2078,2943.4,2943.2,3.4097]
[1765910285232,3.37087215,2943.3,2943.0,0.9809]
[1765910286129,1.6627,2942.5,2942.4,3.2078]
[1765910286429,3.3683,2942.5,2942.0,1.07914802]
[1765910286626,3.2078,2943.1,2942.5,0.9809]
[1765910286831,4.8705,2943.1,2943.0,2.6943]
[1765910287235,6.5761,2943.1,2943.0,0.9809]
[1765910287534,6.5761,2943.1,2942.5,0.9809]
[1765910288528,1.6627,2942.6,2942.5,0.9809]
[1765910288739,1.6627,2942.1,2942.0,2.70294802]
[1765910289032,3.37776,2942.5,2942.0,2.70294802]
[1765910290531,3.2078,2942.5,2942.4,3.4097]
[1765910291031,3.2078,2943.1,2942.5,0.9809]
[1765910291440,40.8,2943.0,2942.5,0.9809]
[1765910291732,4.8705,2943.1,2943.0,2.6943]
[1765910291930,6.5761,2943.1,2942.5,0.9809]
[1765910293635,1.6627,2942.6,2942.5,2.6943]
[1765910293836,1.6627,2942.6,2942.5,4.3906]
[1765910294136,3.2078,2943.1,2942.5,4.3906]
[1765910294935,3.2078,2943.1,2942.4,3.2078]
[1765910294936,1.7056,2942.2,2942.1,3.2078]
[1765910295242,3.3683,2942.1,2942.0,0.00864802]
[1765910295936,3.3683,2942.4,2942.0,0.98954802]
[1765910296333,1.6627,2942.1,2942.0,2.70294802]
[1765910297640,3.3683,2942.1,2942.0,0.00864802]
[1765910298939,1.6627,2942.1,2942.0,2.70294802]
[1765910300644,3.3683,2942.1,2942.0,2.70294802]
[1765910301042,3.3683,2942.1,2942.0,0.00864802]
[1765910301238,6.5761,2942.1,2942.0,0.00864802]
[1765910301439,3.3683,2941.5,2941.4,3.2078]
[1765910302348,3.3683,2941.5,2941.1,3.2078]
[1765910302539,3.3683,2941.5,2941.4,1.7134]
[1765910303549,0.00509631,2941.6,2941.1,3.41295004]
[1765910303947,0.00509631,2941.6,2941.5,4.3906]
[1765910305644,3.37339631,2941.6,2941.5,0.9809]
[1765910305950,3.37339631,2941.6,2941.1,0.00325004]
[1765910305951,3.3683,2941.5,2941.1,3.21105004]
[1765910306443,0.00509631,2941.6,2941.1,3.21105004]
[1765910306444,1.6627,2941.2,2941.1,4.92445004]
[1765910306643,1.66631232,2941.2,2941.1,6.62075004]
[1765910306846,0.00361232,2941.2,2941.1,6.62075004]
[1765910307245,3.37191232,2941.2,2941.1,0.00325004]
[1765910308148,3.3683,2940.6,2940.5,4.1887]
[1765910308354,3.3683,2940.6,2940.5,3.2078]
[1765910308954,3.37784,2941.0,2940.5,7.5984]
[1765910309145,3.2078,2941.0,2940.5,7.5984]
[1765910309346,3.2078,2941.0,2940.5,7.60145256]
[1765910310949,4.8705,2941.0,2940.9,1.7134]
[1765910311151,6.5761,2941.0,2940.9,1.7134]
[1765910311347,6.5761,2941.0,2940.5,4.19175256]
[1765910311649,1.6627,2940.6,2940.5,5.90515256]
[1765910311848,3.3683,2940.6,2940.5,5.90515256]
[1765910312451,1.6627,2940.6,2940.5,7.60145256]
[1765910312756,3.3683,2940.6,2940.5,0.00305256]
[1765910313050,3.2078,2941.0,2940.6,3.4097]
[1765910313252,6.5761,2941.0,2940.5,0.98395256]
[1765910313657,3.3683,2941.0,2940.9,1.7134]
[1765910314457,0.00361232,2941.2,2941.1,2.9515]
[1765910314648,3.127,2941.1,2941.0,2.4433]
[1765910314856,1.5711,2941.1,2941.0,3.8892]
[1765910315257,3.127,2941.1,2940.5,0.98395256]
[1765910315460,0.00361232,2941.2,2940.5,2.48955256]
[1765910315461,3.127,2940.6,2940.5,2.48955256]
[1765910315661,1.5711,2940.6,2940.5,3.93545256]
[1765910315861,3.2078,2941.0,2940.5,3.93545256]
[1765910316557,6.3348,2941.0,2940.5,0.98395256]
[1765910316760,1.5711,2940.6,2940.5,3.89225256]
[1765910316956,4.1301,2941.0,2940.5,3.89225256]
[1765910316957,4.7789,2941.0,2940.9,2.9515]
[1765910317566,1.5711,2941.0,2940.9,2.9515]
[1765910318059,0.00361232,2941.2,2941.1,2.9515]
[1765910318260,3.13061232,2941.2,2941.1,2.9515]
[1765910318558,1.5711,2941.1,2941.0,2.4433]
[1765910318765,1.5711,2941.1,2941.0,3.8892]
[1765910318961,3.127,2941.1,2940.5,4.14855256]
[1765910319862,3.127,2941.1,2941.0,1.5056]
[1765910320160,1.5711,2941.1,2941.0,3.8892]
[1765910322362,0.00361232,2941.2,2941.1,2.9515]
[1765910322866,1.57471232,2941.2,2941.1,2.9515]
[1765910323167,0.00361232,2941.2,2941.1,2.9515]
[1765910323561,1.57471232,2941.2,2941.1,2.9515]
[1765910324166,0.00361232,2941.2,2941.1,2.9515]
[1765910324664,4.78399631,2941.6,2941.5,3.8892]
[1765910324865,3.21289631,2941.6,2941.5,3.8892]
[1765910325666,0.00889235,2941.6,2941.5,3.8892]
[1765910326062,3.127,2941.4,2941.3,3.2078]
[1765910326263,3.127,2941.1,2941.0,2.4433]
[1765910326462,1.5711,2941.1,2941.0,3.8892]
[1765910326656,3.127,2941.1,2941.0,2.4433]
[1765910327064,3.127,2941.1,2941.0,1.5056]
[1765910327259,3.127,2941.1,2940.6,3.2078]
[1765910327559,3.37782,2941.4,2940.6,6.1593]
[1765910328467,3.37782,2941.4,2940.6,8.55383036]
[1765910328669,1.57999235,2941.6,2941.5,3.8892]
[1765910328866,0.00889235,2941.6,2941.5,3.8892]
[1765910329365,3.2078,2941.7,2941.6,2.9515]
[1765910329670,3.2078,2942.0,2941.9,2.9515]
[1765910329970,4.7789,2942.0,2941.9,2.9515]
[1765910330271,4.7823992,2942.0,2941.9,2.9515]
[1765910330768,4.7823992,2942.0,2941.7,1.5106963]
[1765910330769,1.5711,2941.8,2941.7,1.5106963]
[1765910330968,1.5711,2941.8,2941.7,2.9565963]
[1765910331170,3.2112992,2942.0,2941.7,2.9565963]
[1765910331771,3.297,2941.8,2941.7,0.0050963]
[1765910332469,4.7823992,2942.0,2941.9,1.5056]
[1765910332671,6.3382992,2942.0,2941.7,0.0050963]
[1765910332870,1.5711,2941.8,2941.7,1.5106963]
[1765910333280,3.127,2941.8,2941.7,1.5106963]
[1765910333467,3.127,2941.8,2941.7,0.0050963]
[1765910335575,3.127,2941.0,2940.9,1.5056]
[1765910335769,3.2078,2941.4,2941.0,0.9377]
[1765910336172,1.5711,2941.1,2941.0,0.9377]
[1765910336372,3.127,2941.1,2941.0,0.9377]
[1765910337172,1.5711,2941.1,2941.0,3.8892]
[1765910337579,1.5711,2941.1,2941.0,2.4433]
[1765910337876,3.127,2941.1,2941.0,2.4433]
[1765910338674,1.5711,2941.1,2941.0,3.8892]
[1765910340083,44.0078,2941.4,2941.3,1.5056]
[1765910340672,44.0078,2941.4,2941.0,0.9377]
[1765910341383,3.2078,2941.4,2941.3,2.9515]
[1765910341794,4.7789,2941.4,2941.3,2.9515]
[1765910342284,3.2078,2941.4,2941.3,2.9515]
[1765910342486,4.7789,2941.4,2941.3,1.5056]
[1765910342684,3.127,2941.0,2940.9,2.99316295]
[1765910342982,3.127,2941.0,2940.5,7.14171551]
[1765910343680,3.127,2941.0,2940.9,1.5056]
[1765910344289,3.127,2941.0,2940.5,7.14171551]
[1765910344484,3.2078,2941.1,2940.8,2.7537]
[1765910344677,5.974,2941.1,2941.0,2.1928]
[1765910344884,5.974,2941.1,2940.5,0.94075256]
[1765910345081,1.4511,2940.6,2940.5,3.69445256]
[1765910345682,3.2078,2941.1,2940.5,3.69445256]
[1765910345882,5.974,2941.1,2941.0,2.1928]
[1765910346283,4.6589,2941.1,2941.0,3.5574]
[1765910346888,3.2078,2941.1,2941.0,3.5574]
[1765910347388,5.974,2941.1,2941.0,0.8037]
[1765910347591,1.4511,2940.9,2940.8,3.80302854]
[1765910347784,2.7662,2940.9,2940.8,3.80302854]
[1765910347984,2.7662,2940.9,2940.8,1.3891]
[1765910349093,2.7662,2940.8,2940.7,2.41392854]
[1765910349593,0.17003,2941.3,2940.7,5.16762854]
[1765910349790,0.17003,2941.3,2940.8,5.16799304]
[1765910350193,3.2078,2941.4,2940.8,5.16799304]
[1765910350386,3.2078,2941.4,2941.0,0.8037]
[1765910351789,2.7662,2941.0,2940.8,3.2078]
[1765910351995,5.974,2941.4,2941.3,1.3891]
[1765910352990,2.42214748,2941.4,2941.3,2.7537]
[1765910353192,0.03885009,2944.1,2941.3,2.7537]
[1765910353193,0.8554,2943.5,2942.1,0.16998]
[1765910353400,0.16967049,2943.5,2943.4,3.2078]
[1765910353692,0.16967049,2943.5,2943.1,3.09057731]
[1765910353895,0.16967049,2943.5,2943.4,2.40641205]
[1765910354083,0.16967049,2943.5,2943.3,2.40056127]
[1765910354283,0.17355162,2943.5,2943.4,3.2078]
[1765910355489,4.48092391,2943.5,2943.4,3.2078]
[1765910355895,0.85928113,2943.5,2943.4,3.2078]
[1765910356492,4.48092391,2943.5,2943.4,3.2078]
[1765910356792,3.16582391,2943.5,2943.4,3.2078]
[1765910356992,1.71472391,2943.5,2943.4,3.2078]
[1765910357393,0.85928113,2943.5,2943.4,3.2078]
[1765910357597,1.71472391,2943.5,2943.4,3.2078]
[1765910358495,4.48092391,2943.5,2943.4,3.2078]
[1765910358696,4.48092391,2943.5,2943.1,0.00304249]
[1765910358697,2.7662,2943.2,2943.1,0.00304249]
[1765910358885,2.7662,2943.2,2943.0,0.00509631]
[1765910358886,2.7662,2943.1,2943.0,1e-08]
[1765910359089,2.7662,2943.1,2943.0,3.20780001]
[1765910359286,3.62164278,2943.1,2943.0,3.20780001]
[1765910359689,2.7662,2943.1,2943.0,3.20780001]
[1765910359886,3.62164278,2943.1,2943.0,3.21069005]
[1765910363197,3.62164278,2943.1,2943.0,4.59979005]
[1765910363198,0.85544278,2943.1,2943.0,4.59979005]
[1765910363396,0.85928113,2943.5,2943.4,2.7537]
[1765910363597,0.00388113,2943.5,2943.4,2.7537]
[1765910363806,0.8554,2944.0,2943.9,1.3891]
[1765910364103,0.8554,2944.0,2943.9,4.5969]
[1765910364286,7.8438,2944.6,2943.9,5.9615]
[1765910364287,4.636,2944.6,2943.9,5.9615]
[1765910364494,3.6216,2944.5,2944.4,3.2078]
[1765910364689,2.3065,2944.5,2944.4,3.2078]
[1765910364907,3.16512988,2944.5,2944.4,4.5969]
[1765910365993,1.71402988,2944.5,2944.4,5.9615]
[1765910366202,0.85862988,2944.5,2944.4,5.9615]
[1765910366503,0.0031871,2944.5,2944.4,5.9615]
[1765910367102,0.00509631,2944.7,2944.6,2.7537]
[1765910367306,3.6216,2944.5,2944.4,3.2078]
[1765910367605,0.8554,2944.5,2944.4,5.9615]
[1765910367997,0.85913264,2944.5,2944.4,5.9615]
[1765910368201,0.00373264,2944.5,2944.4,5.9615]
[1765910368406,0.85917542,2944.5,2944.4,5.9615]
[1765910370309,0.00373264,2944.5,2944.4,5.9615]
[1765910370810,4.48077542,2944.5,2944.4,4.5969]
[1765910371112,4.48077542,2944.5,2944.4,3.2078]
[1765910371313,2.7662,2944.2,2944.1,3.2078]
[1765910371707,3.62164278,2944.2,2944.1,3.2078]
[1765910371909,2.30654278,2944.2,2944.1,4.5969]
[1765910372210,0.85544278,2944.2,2944.1,5.9615]
[1765910372417,0.00373264,2944.5,2944.4,2.7537]
[1765910372616,0.85917542,2944.5,2944.4,2.7537]
[1765910372816,0.85917542,2944.5,2944.4,5.9615]
[1765910373016,3.62537542,2944.5,2944.4,3.2078]
[1765910374016,3.62537542,2944.5,2944.4,4.5969]
[1765910374217,0.85917542,2944.5,2944.4,6.8895]
[1765910374421,5.30767542,2944.5,2944.4,3.2078]
[1765910374819,6.59907542,2944.5,2944.4,3.2078]
[1765910375718,6.59907542,2944.5,2943.0,3.86559005]
[1765910375719,6.76891542,2944.5,2943.0,0.80659005]
[1765910375912,2.2721,2943.7,2943.3,3.2078]
[1765910376319,4.5507,2943.4,2943.3,3.2078]
[1765910376514,4.5507,2943.1,2943.0,3.21069005]
[1765910377024,5.40614278,2943.1,2943.0,3.21069005]
[1765910377627,3.12754278,2943.1,2943.0,5.38359005]
[1765910378230,3.12754278,2943.1,2943.0,7.58859005]
[1765910379039,3.12754278,2943.1,2943.0,5.38359005]
[1765910379215,0.85544278,2943.1,2943.0,8.95619005]
[1765910379726,2.2721,2943.7,2943.6,2.1729]
[1765910379927,2.2721,2943.7,2943.6,4.3779]
[1765910380223,3.12754278,2943.7,2943.6,4.3779]
[1765910380719,0.85544278,2943.7,2943.6,4.3779]
[1765910382727,2.2721,2943.1,2943.0,4.57829005]
[1765910383128,2.2721,2943.1,2943.0,6.75119005]
[1765910383129,3.12754278,2943.1,2943.0,6.75119005]
[1765910383528,6.33534278,2943.1,2943.0,3.54339005]
[1765910383722,8.61394278,2943.1,2943.0,0.00289005]
[1765910386932,8.61394278,2943.1,2943.0,2.17579005]
[1765910387322,5.40614278,2943.1,2943.0,2.17579005]
[1765910387720,5.40614278,2943.1,2943.0,0.00289005]
[1765910388124,3.2078,2943.5,2943.4,4.3779]
[1765910388326,3.12754278,2943.2,2943.1,2.1729]
[1765910388633,0.85544278,2943.2,2943.1,4.3779]
[1765910391530,4.5507,2943.8,2943.5,1.3676]
[1765910391727,0.72182843,2943.6,2943.5,5.7455]
[1765910395332,44.0078,2944.3,2944.2,2.1729]
[1765910395541,5.4799,2944.3,2944.2,2.1729]
[1765910395737,6.20172843,2944.3,2944.2,2.1729]
[1765910395935,8.48032843,2944.3,2944.2,2.1729]
[1765910396140,8.48032843,2944.3,2943.7,3.2078]
[1765910396443,8.48032843,2944.3,2944.2,2.1729]
[1765910396940,8.48032843,2944.3,2943.7,3.2078]
[1765910397440,6.20172843,2944.3,2944.2,4.3779]
[1765910398337,8.48032843,2944.3,2944.2,2.1729]
[1765910399438,2.2721,2944.1,2944.0,3.5405]
[1765910399632,4.5507,2944.1,2943.7,3.2078]
[1765910399941,2.2721,2943.8,2943.7,7.5857]
[1765910400138,4.5507,2943.8,2943.7,3.2078]
[1765910400342,4.5507,2943.8,2943.7,5.3807]
[1765910400736,2.2721,2943.8,2943.7,7.5857]
[1765910400938,3.92962843,2944.3,2944.2,4.3779]
[1765910401242,6.20172843,2944.3,2944.2,4.3779]
[1765910401637,3.92962843,2944.3,2944.2,4.3779]
[1765910402348,6.20172843,2944.3,2944.2,4.3779]
[1765910403041,2.99392843,2944.3,2944.2,4.3779]
[1765910403945,5.27252843,2944.3,2944.2,4.3779]
[1765910404139,5.27252843,2944.3,2944.2,2.1729]
[1765910405641,5.27252843,2944.3,2944.2,4.2651]
[1765910406350,2.99392843,2944.3,2944.2,4.2651]
[1765910406644,0.72182843,2944.3,2944.2,4.2651]
[1765910407146,2.81692843,2944.3,2944.2,4.2651]
[1765910408444,4.95102843,2944.3,2944.2,2.1729]
[1765910408747,2.81692843,2944.3,2944.2,4.2651]
[1765910409546,0.72182843,2944.3,2944.2,4.2651]
[1765910409739,4.95102843,2944.3,2944.2,2.1729]
[1765910410148,2.0951,2944.1,2944.0,8.8725]
[1765910410837,4.2292,2944.1,2944.0,5.4127]
[1765910411040,4.2292,2944.1,2944.0,3.2078]
[1765910411546,2.0951,2943.8,2943.7,7.5049]
[1765910411746,4.09948843,2944.3,2943.7,7.5049]
[1765910411949,0.89168843,2944.3,2943.7,9.90546127]
[1765910412639,4.95102843,2944.3,2944.2,4.2971]
[1765910412944,2.81692843,2944.3,2944.2,4.2971]
[1765910413244,0.00373264,2944.5,2944.4,4.2971]
[1765910413444,0.00373264,2944.5,2944.4,9.90737163]
[1765910413644,2.09883264,2944.5,2944.4,9.90737163]
[1765910414446,2.09883264,2944.5,2944.4,7.5049]
[1765910414641,4.2292,2944.4,2944.3,4.60737163]
[1765910414846,2.0951,2944.4,2944.3,4.2971]
[1765910415242,2.0951,2944.4,2944.3,6.69957163]
[1765910415442,2.0951,2944.4,2944.3,4.2971]
[1765910419454,4.2292,2944.4,2944.3,4.2971]
[1765910419653,0.00373264,2944.5,2944.4,4.2971]
[1765910419946,4.23293264,2944.5,2944.4,4.2971]
[1765910420147,4.2292,2944.4,2944.3,4.60737163]
[1765910420342,4.2292,2944.1,2944.0,5.61027163]
[1765910420546,0.54493264,2944.5,2944.0,5.61027163]
[1765910420547,0.00373264,2944.5,2944.4,4.2971]
[1765910420750,0.00373264,2944.5,2944.4,6.70195668]
[1765910421349,4.23293264,2944.5,2944.4,6.70195668]
[1765910421651,4.23293264,2944.5,2944.4,4.60975668]
[1765910422046,4.23293264,2944.5,2944.4,6.70195668]
[1765910422251,4.23293264,2944.5,2944.4,4.2971]
[1765910422445,4.23293264,2944.5,2944.4,2.2049]
[1765910422649,4.23293264,2944.5,2944.4,4.2971]
[1765910424158,4.23293264,2944.5,2944.4,6.70195668]
[1765910425169,2.09883264,2944.5,2944.4,6.70195668]
[1765910426869,0.00373264,2944.5,2944.4,4.2971]
[1765910427261,3.264e-05,2944.5,2944.4,7.30667731]
[1765910427463,3.264e-05,2944.5,2944.4,10.2971]
[1765910428170,4.22923264,2944.5,2944.4,4.2971]
[1765910428373,3.264e-05,2944.5,2944.3,7.4280166]
[1765910428570,3.264e-05,2944.5,2944.3,3.2078]
[1765910429671,2.895e-05,2944.7,2944.6,4.2971]
[1765910429869,2.895e-05,2944.7,2944.6,7.5049]
[1765910430164,2.895e-05,2944.7,2944.6,13.5049]
[1765910430560,44.0078,2945.6,2944.6,9.2078]
[1765910430761,5.3029,2945.6,2945.5,5.5507]
[1765910430958,2.0951,2945.4,2945.3,6.70040977]
[1765910431167,4.2292,2945.4,2945.3,4.2971]
[1765910431669,4.23316041,2945.4,2945.3,4.29971881]
[1765910432073,2.09906041,2945.4,2945.3,4.29971881]
[1765910432272,4.23316041,2945.4,2945.3,4.29971881]
[1765910432973,4.23316041,2945.4,2945.3,0.00261881]
[1765910436783,4.23316041,2945.4,2945.3,2.20751881]
[1765910437777,4.23316041,2945.4,2945.3,0.00261881]
[1765910438665,4.23316041,2945.4,2945.3,3.85311881]
[1765910438876,0.00396041,2945.4,2945.3,7.06091881]
[1765910439478,1.86406041,2945.4,2945.3,7.06091881]
[1765910440377,0.00396041,2945.4,2945.3,7.06091881]
[1765910441080,1.86406041,2945.4,2945.3,7.06091881]
[1765910441272,3.77026041,2945.4,2945.3,0.00261881]
[1765910443179,3.94005041,2945.4,2945.3,0.00261881]
[1765910445983,19.89805041,2945.4,2945.3,0.00261881]
[1765910446177,25.89805041,2945.4,2945.3,0.00261881]
[1765910448885,19.89805041,2945.4,2945.3,0.00261881]
[1765910453093,3.94005041,2945.4,2945.3,0.00261881]
[1765910453391,0.00396041,2945.4,2945.3,3.85311881]
[1765910454688,6.9741,2946.2,2946.1,1.8612]
[1765910454892,6.9741,2946.2,2946.1,3.8505]
[1765910455084,47.7741,2946.2,2946.1,3.8505]
[1765910455389,47.22237607,2946.2,2946.1,4.27091894]
[1765910455692,47.22521404,2946.2,2946.1,4.27091894]
[1765910456084,45.31901404,2946.2,2946.1,4.27091894]
[1765910456388,45.31901404,2946.2,2946.1,3.8505]
[1765910456893,4.51901404,2946.2,2946.1,3.8505]
[1765910457091,4.51901404,2946.2,2945.7,2.4039472]
[1765910457092,3.7663,2945.8,2945.7,6.2544472]
[1765910458291,3.7663,2945.8,2945.7,3.8505]
[1765910458788,3.7663,2945.8,2945.7,1.8612]
[1765910459788,3.7663,2945.8,2945.4,2.4039472]
[1765910459789,3.7663,2945.5,2945.4,6.2544472]
[1765910459997,3.7663,2945.4,2945.3,0.00261881]
[1765910460294,3.7663,2945.4,2945.3,3.85311881]
[1765910460794,3.7663,2945.4,2945.3,1.86381881]
[1765910461387,3.2078,2945.9,2945.8,3.8505]
[1765910461589,3.76913797,2946.2,2946.1,1.8612]
[1765910461890,3.7663,2945.6,2945.5,7.4627472]
[1765910462092,3.7663,2945.6,2945.5,5.0588]
[1765910462895,3.7663,2945.4,2945.3,0.00261881]
[1765910465893,1.7523,2945.5,2945.4,3.7678]
[1765910466093,3.5669,2945.5,2945.4,1.868]
[1765910466500,3.5669,2945.4,2945.3,1.87061881]
[1765910466793,3.5669,2945.4,2945.3,0.00261881]
[1765910469199,3.73669,2945.4,2945.3,0.00261881]
[1765910471899,44.53669,2945.4,2945.3,0.00261881]
[1765910477489,1.7523,2945.4,2945.3,3.77041881]
[1765910477690,1.7523,2945.6,2945.5,4.797]
[1765910477905,5.12034377,2945.9,2945.8,1.868]
[1765910478105,3.73666,2945.9,2945.8,1.868]
[1765910478505,44.53666,2945.9,2945.8,1.868]
[1765910478906,3.56973797,2946.2,2946.1,3.7678]
[1765910479300,1.75513797,2946.2,2946.1,3.7678]
[1765910479500,42.55513797,2946.2,2946.1,3.7678]
[1765910480202,1.75513797,2946.2,2946.1,3.7678]
[1765910480500,1.75513797,2946.2,2945.8,3.78763097]
[1765910480501,3.5669,2945.9,2945.8,2.4039472]
[1765910480696,3.5669,2945.9,2945.8,3.7678]
[1765910481104,1.7523,2945.9,2945.8,3.7678]
[1765910481707,1.75513797,2946.2,2946.1,3.7678]
[1765910481906,3.56973797,2946.2,2946.1,3.7678]
[1765910482502,3.56973797,2946.2,2946.1,6.9756]
[1765910482708,1.75513797,2946.2,2946.1,6.9756]
[1765910482907,3.56973797,2946.2,2946.1,6.9756]
[1765910483208,3.5669,2946.1,2946.0,2.8972]
[1765910483407,3.5669,2945.8,2945.7,6.9756]
[1765910483610,3.5669,2945.8,2945.7,5.0758]
[1765910483806,3.5669,2945.8,2945.7,3.2078]
[1765910484012,4.95058377,2945.8,2945.7,3.2078]
[1765910484913,1.1964,2945.4,2945.3,0.00261881]
[1765910485205,4.4042,2945.4,2945.3,0.00261881]
[1765910485403,3.2078,2945.5,2945.4,3.7678]
[1765910485609,3.2078,2945.8,2945.7,3.7678]
[1765910485807,18.138,2946.1,2946.0,2.8972]
[1765910486011,58.938,2946.1,2946.0,1.0292]
[1765910486206,58.938,2946.1,2946.0,2.8972]
[1765910486808,1.0925,2946.1,2946.0,4.797]
[1765910487916,40.80283797,2946.2,2946.1,3.7678]
[1765910488124,0.00283797,2946.2,2946.1,3.7678]
[1765910488511,0.00283797,2946.2,2946.1,6.1717472]
[1765910488706,0.00283797,2946.2,2946.1,3.7678]
[1765910489014,0.00283797,2946.2,2946.1,6.16290064]
[1765910489217,0.00283797,2946.2,2946.1,6.16275831]
[1765910491318,0.00283797,2946.2,2946.1,3.7678]
[1765910492517,3.797e-05,2946.2,2946.1,6.16275831]
[1765910492816,19.1598,2947.2,2947.1,3.7678]
[1765910492817,3.2078,2947.2,2947.1,3.7678]
[1765910493017,4.1741,2947.2,2947.1,3.7678]
[1765910493217,5.1404,2947.2,2947.1,3.7678]
[1765910493406,5.1404,2947.2,2947.1,1.868]
[1765910493613,5.14436106,2947.2,2947.1,1.868]
[1765910493922,0.9663,2947.1,2947.0,4.653]
[1765910494118,1.9143,2947.1,2947.0,4.653]
[1765910494520,0.9663,2947.1,2947.0,4.7298]
[1765910494717,1.8954,2947.1,2947.0,4.7298]
[1765910494913,1.8582,2947.0,2946.9,0.00509631]
[1765910495712,2.0279,2947.0,2946.9,0.00509631]
[1765910495918,1.8394,2946.6,2946.5,1.0292]
[1765910496224,45.8472,2946.6,2946.5,1.0292]
[1765910498422,44.9369,2946.6,2946.5,4.7361]
[1765910498624,3.2078,2946.6,2946.5,4.7361]
[1765910498826,0.8552,2946.6,2946.5,4.7361]
[1765910499523,1.7104,2946.6,2946.5,4.7361]
[1765910499728,1.7104,2946.6,2946.5,2.9035]
[1765910500232,1.7104,2946.6,2946.5,4.7361]
[1765910500428,4.0444,2946.9,2946.8,3.7069]
[1765910501321,1.6364,2946.6,2946.5,4.7361]
[1765910501521,0.16954,2949.8,2948.5,1.0618]
[1765910501826,0.8182,2950.0,2949.6,3.2078]
[1765910502030,0.8182,2950.0,2949.0,2.07421019]
[1765910502031,2.6247,2950.0,2949.9,3.2078]
[1765910502528,4.42320018,2950.0,2949.9,3.21030716]
[1765910502929,4.42320018,2950.0,2949.9,0.00250716]
[1765910503231,0.00340018,2950.0,2949.9,3.70940716]
[1765910503429,0.00340018,2950.0,2949.9,6.91720716]
[1765910503723,1.80990018,2950.0,2949.9,5.08460716]
[1765910503930,4.72120018,2950.0,2949.9,3.21030716]
[1765910505230,4.72120018,2950.0,2949.9,0.00250716]
[1765910507238,4.89072018,2950.0,2949.9,0.00250716]
[1765910507735,24.94172018,2950.0,2949.9,7.16e-06]
[1765910507933,65.74172018,2950.0,2949.9,7.16e-06]
[1765910508837,59.74172018,2950.0,2949.9,7.16e-06]
[1765910509838,61.68372018,2950.0,2949.9,7.16e-06]
[1765910511845,44.57452018,2950.0,2949.9,1.87430716]
[1765910512038,43.88422018,2950.0,2949.9,7.16e-06]
[1765910512235,42.08912018,2950.0,2949.9,7.16e-06]
[1765910514544,42.08912018,2950.0,2949.9,1.87430716]
[1765910515340,40.97292018,2950.0,2949.9,3.70690716]
[1765910515849,0.17292018,2950.0,2949.9,3.70690716]
[1765910516148,1.97942018,2950.0,2949.9,3.70690716]
[1765910516351,1.28912018,2950.0,2949.9,7.16e-06]
[1765910517647,42.08912018,2950.0,2949.9,7.16e-06]
[1765910518049,1.97942018,2950.0,2949.9,3.70690716]
[1765910518253,0.00340018,2950.0,2949.9,3.70690716]
[1765910518554,3.60500018,2950.0,2949.9,3.70690716]
[1765910518956,3.60500018,2950.0,2949.9,1.87430716]
[1765910519358,1.80990018,2950.0,2949.9,3.70690716]
[1765910519659,3.60500018,2950.0,2949.9,3.70690716]
[1765910519856,1.11960018,2950.0,2949.9,7.16e-06]
[1765910520052,1.28912018,2950.0,2949.9,7.16e-06]
[1765910520259,1.28912018,2950.0,2949.9,1.87430716]
[1765910520456,1.28912018,2950.0,2949.9,3.70690716]
[1765910520457,0.00340018,2950.0,2949.9,3.70690716]
[1765910520851,0.00034742,2950.2,2950.1,3.7069]
[1765910521053,0.00034742,2950.2,2950.1,6.9147]
[1765910521455,0.00034742,2950.2,2950.1,12.9147]
[1765910521958,0.00032926,2950.2,2950.1,12.9147]
[1765910523363,0.00032926,2950.2,2950.1,6.9147]
[1765910523964,0.00032926,2950.2,2950.1,12.9147]
[1765910525766,0.00032926,2950.2,2950.1,17.33324022]
[1765910527166,0.00032926,2950.2,2950.1,12.9147]
[1765910529461,0.0003153,2950.4,2950.3,4.2122]
[1765910530369,0.00033696,2950.4,2950.3,4.2122]
[1765910531360,40.8,2951.4,2950.3,4.2122]
[1765910531567,40.8,2951.4,2951.3,2.14]
[1765910531759,4.1814,2951.4,2951.3,4.2122]
[1765910531965,1.80608496,2952.9,2952.8,4.2122]
[1765910532170,4.1814,2953.1,2953.0,2.14]
[1765910532469,0.00349914,2953.1,2953.0,8.67131865]
[1765910532666,0.00349914,2953.1,2953.0,5.46351865]
[1765910532868,0.00349914,2953.1,2953.0,8.67131865]
[1765910533263,4.18489914,2953.1,2953.0,0.00421865]
[1765910534376,4.1814,2952.9,2952.8,0.00508604]
[1765910535464,4.35076,2952.9,2952.8,0.00754232]
[1765910535668,4.1814,2952.4,2952.3,3.2078]
[1765910536270,0.16936,2952.8,2952.3,7.42]
[1765910536771,4.1814,2952.4,2952.3,3.21689197]
[1765910537164,0.00508604,2952.8,2952.3,7.42909197]
[1765910537365,4.1814,2952.4,2952.3,3.21689197]
[1765910537870,4.1814,2952.4,2952.3,0.00909197]
[1765910540569,4.35079,2952.4,2952.3,0.00909197]
[1765910540875,4.1814,2952.0,2951.9,3.2078]
[1765910541273,5.54211,2952.0,2951.9,3.2078]
[1765910541470,5.54211,2952.0,2951.4,5.3478]
[1765910541471,2.1443,2951.5,2951.4,5.3478]